[Event "Titled Tuesday Blitz September 27 Late 2022"]
[White "Caruana, Fabiano"]
[Black "Kamsky, Gata"]
[WhiteFideId "2020009"]
[BlackFideId "2000024"]
[WhiteElo "2847"]
[BlackElo "2666"]
[Result "0-1"]
[Round "08"]
[TimeControl "180+1"]
[Date "2022.09.27"]
[WhiteClock "0:00:08"]
[BlackClock "0:01:05"]

1. d4 {[%clk 0:03:00]}  d5 {[%clk 0:02:57]} 2. Nf3 {[%clk 0:03:00]}  Nf6 {[%clk 0:02:57]} 3. c4 {[%clk 0:02:59]}  c6 {[%clk 0:02:57]} 4. e3 {[%clk 0:02:58]}  g6 {[%clk 0:02:57]} 5. Nc3 {[%clk 0:02:58]}  Bg7 {[%clk 0:02:57]} 6. h3 {[%clk 0:02:58]}  O-O {[%clk 0:02:57]} 7. Be2 {[%clk 0:02:58]}  a6 {[%clk 0:02:55]} 8. O-O {[%clk 0:02:58]}  e6 {[%clk 0:02:43]} 9. a4 {[%clk 0:02:54]}  a5 {[%clk 0:02:43]} 10. b3 {[%clk 0:02:53]}  Nbd7 {[%clk 0:02:41]} 11. Ba3 {[%clk 0:02:53]}  Re8 {[%clk 0:02:40]} 12. Qc2 {[%clk 0:02:52]}  b6 {[%clk 0:02:39]} 13. Ne5 {[%clk 0:02:45]}  Nxe5 {[%clk 0:02:29]} 14. dxe5 {[%clk 0:02:46]}  Nd7 {[%clk 0:02:29]} 15. f4 {[%clk 0:02:47]}  f6 {[%clk 0:02:24]} 16. exf6 {[%clk 0:02:42]}  Qxf6 {[%clk 0:02:22]} 17. Bb2 {[%clk 0:02:40]}  Bb7 {[%clk 0:02:17]} 18. Rad1 {[%clk 0:02:37]}  Nc5 {[%clk 0:02:16]} 19. Bf3 {[%clk 0:02:28]}  Rad8 {[%clk 0:02:11]} 20. Ba1 {[%clk 0:02:21]}  Qf5 {[%clk 0:02:06]} 21. e4 {[%clk 0:02:08]}  Qxf4 {[%clk 0:02:03]} 22. exd5 {[%clk 0:01:57]}  Be5 {[%clk 0:02:00]} 23. g4 {[%clk 0:01:47]}  Qg3+ {[%clk 0:01:55]} 24. Qg2 {[%clk 0:01:45]}  Qxg2+ {[%clk 0:01:54]} 25. Kxg2 {[%clk 0:01:45]}  cxd5 {[%clk 0:01:54]} 26. Rfe1 {[%clk 0:01:26]}  Bg7 {[%clk 0:01:45]} 27. cxd5 {[%clk 0:01:25]}  Nxb3 {[%clk 0:01:44]} 28. Bb2 {[%clk 0:01:24]}  exd5 {[%clk 0:01:43]} 29. Rxe8+ {[%clk 0:00:34]}  Rxe8 {[%clk 0:01:43]} 30. Bxd5+ {[%clk 0:00:34]}  Bxd5+ {[%clk 0:01:43]} 31. Rxd5 {[%clk 0:00:35]}  Nc5 {[%clk 0:01:33]} 32. Kf3 {[%clk 0:00:30]}  Kf7 {[%clk 0:01:25]} 33. Rd6 {[%clk 0:00:25]}  Re6 {[%clk 0:01:25]} 34. Rd8 {[%clk 0:00:25]}  h5 {[%clk 0:01:19]} 35. gxh5 {[%clk 0:00:23]}  gxh5 {[%clk 0:01:19]} 36. Nd1 {[%clk 0:00:22]}  Bf6 {[%clk 0:01:14]} 37. Rd5 {[%clk 0:00:18]}  Nxa4 {[%clk 0:01:12]} 38. Ba3 {[%clk 0:00:14]}  Kg6 {[%clk 0:01:10]} 39. Ne3 {[%clk 0:00:13]}  Nc3 {[%clk 0:01:10]} 40. Rd2 {[%clk 0:00:12]}  b5 {[%clk 0:01:09]} 41. Bc5 {[%clk 0:00:10]}  Ne4 {[%clk 0:01:07]} 42. Rg2+ {[%clk 0:00:11]}  Kf7 {[%clk 0:01:06]} 43. Bb6 {[%clk 0:00:10]}  Ng5+ {[%clk 0:01:05]} 44. Ke2 {[%clk 0:00:08]}  Rxb6 {[%clk 0:01:05]} 0-1


[Site "https://www.chess.com"]

[Event "Titled Tuesday Blitz September 27 Late 2022"]
[White "Dardha, Daniel"]
[Black "Kollars, Dmitrij"]
[WhiteFideId "240990"]
[BlackFideId "12909572"]
[WhiteElo "2528"]
[BlackElo "2584"]
[Result "1-0"]
[Round "08"]
[TimeControl "180+1"]
[Date "2022.09.27"]
[WhiteClock "0:00:09"]
[BlackClock "0:00:03"]

1. e4 {[%clk 0:03:00]}  c6 {[%clk 0:02:58]} 2. Nf3 {[%clk 0:03:00]}  d5 {[%clk 0:02:58]} 3. d3 {[%clk 0:03:01]}  dxe4 {[%clk 0:02:57]} 4. dxe4 {[%clk 0:03:02]}  Qxd1+ {[%clk 0:02:57]} 5. Kxd1 {[%clk 0:03:03]}  Nd7 {[%clk 0:02:56]} 6. a4 {[%clk 0:02:57]}  g6 {[%clk 0:02:55]} 7. Nfd2 {[%clk 0:02:50]}  h5 {[%clk 0:02:51]} 8. c3 {[%clk 0:02:47]}  Bh6 {[%clk 0:02:50]} 9. Kc2 {[%clk 0:02:45]}  Ne5 {[%clk 0:02:44]} 10. f3 {[%clk 0:02:42]}  f5 {[%clk 0:02:42]} 11. Na3 {[%clk 0:02:38]}  Nf6 {[%clk 0:02:40]} 12. Nac4 {[%clk 0:02:18]}  Nxc4 {[%clk 0:02:38]} 13. Bxc4 {[%clk 0:02:18]}  Bxd2 {[%clk 0:02:35]} 14. Bxd2 {[%clk 0:02:17]}  fxe4 {[%clk 0:02:36]} 15. Rae1 {[%clk 0:02:08]}  Bf5 {[%clk 0:02:21]} 16. Kb3 {[%clk 0:02:02]}  exf3 {[%clk 0:02:16]} 17. gxf3 {[%clk 0:02:00]}  O-O-O {[%clk 0:02:01]} 18. Be3 {[%clk 0:01:46]}  a6 {[%clk 0:01:46]} 19. Bf4 {[%clk 0:01:38]}  Rd7 {[%clk 0:01:29]} 20. Rhg1 {[%clk 0:01:32]}  Nd5 {[%clk 0:01:21]} 21. Be5 {[%clk 0:01:26]}  Rf8 {[%clk 0:01:20]} 22. a5 {[%clk 0:01:25]}  e6 {[%clk 0:01:09]} 23. Bd4 {[%clk 0:01:19]}  Nf4 {[%clk 0:01:05]} 24. Ka3 {[%clk 0:01:14]}  Re8 {[%clk 0:00:53]} 25. Re3 {[%clk 0:01:07]}  Nd5 {[%clk 0:00:50]} 26. Re5 {[%clk 0:01:06]}  Nc7 {[%clk 0:00:49]} 27. Bb6 {[%clk 0:01:01]}  Rd2 {[%clk 0:00:46]} 28. h4 {[%clk 0:00:55]}  Nd5 {[%clk 0:00:46]} 29. Bc5 {[%clk 0:00:52]}  Rh2 {[%clk 0:00:43]} 30. Bxd5 {[%clk 0:00:46]}  cxd5 {[%clk 0:00:42]} 31. Rd1 {[%clk 0:00:41]}  Rxh4 {[%clk 0:00:41]} 32. Rdxd5 {[%clk 0:00:38]}  Rd8 {[%clk 0:00:28]} 33. Be7 {[%clk 0:00:22]}  Rxd5 {[%clk 0:00:11]} 34. Rxd5 {[%clk 0:00:22]}  Rh3 {[%clk 0:00:04]} 35. Rd8+ {[%clk 0:00:20]}  Kc7 {[%clk 0:00:04]} 36. f4 {[%clk 0:00:19]}  Rf3 {[%clk 0:00:04]} 37. Rd4 {[%clk 0:00:12]}  Kc6 {[%clk 0:00:03]} 38. Rd6+ {[%clk 0:00:11]}  Kc7 {[%clk 0:00:04]} 39. Rd4 {[%clk 0:00:11]}  Rf1 {[%clk 0:00:03]} 40. Bd8+ {[%clk 0:00:11]}  Kc6 {[%clk 0:00:03]} 41. Kb4 {[%clk 0:00:09]} 1-0


[Site "https://www.chess.com"]

[Event "Titled Tuesday Blitz September 27 Late 2022"]
[White "Diaz Herquinio, Brahian"]
[Black "Preotu, Razvan"]
[WhiteFideId "3809480"]
[BlackFideId "2613280"]
[WhiteElo "1965"]
[BlackElo "2407"]
[Result "0-1"]
[Round "08"]
[TimeControl "180+1"]
[Date "2022.09.28"]
[WhiteClock "0:00:01"]
[BlackClock "0:00:05"]

1. e4 {[%clk 0:02:59]}  c5 {[%clk 0:02:59]} 2. Nf3 {[%clk 0:02:59]}  d6 {[%clk 0:02:59]} 3. d4 {[%clk 0:03:00]}  cxd4 {[%clk 0:03:00]} 4. Nxd4 {[%clk 0:03:00]}  Nf6 {[%clk 0:03:00]} 5. Nc3 {[%clk 0:03:01]}  a6 {[%clk 0:03:01]} 6. Bg5 {[%clk 0:03:01]}  e6 {[%clk 0:02:59]} 7. f4 {[%clk 0:03:01]}  Be7 {[%clk 0:02:58]} 8. Qe2 {[%clk 0:03:00]}  h6 {[%clk 0:02:57]} 9. Bh4 {[%clk 0:02:59]}  Nxe4 {[%clk 0:02:54]} 10. Bxe7 {[%clk 0:03:00]}  Nxc3 {[%clk 0:02:53]} 11. Qc4 {[%clk 0:03:00]}  Kxe7 {[%clk 0:02:49]} 12. Qxc3 {[%clk 0:03:00]}  Bd7 {[%clk 0:02:46]} 13. O-O-O {[%clk 0:02:57]}  Nc6 {[%clk 0:02:47]} 14. Kb1 {[%clk 0:02:50]}  g6 {[%clk 0:02:23]} 15. g4 {[%clk 0:02:39]}  Qb6 {[%clk 0:02:09]} 16. Nb3 {[%clk 0:01:57]}  Qb4 {[%clk 0:02:01]} 17. Qg3 {[%clk 0:01:57]}  g5 {[%clk 0:01:49]} 18. fxg5 {[%clk 0:01:34]}  hxg5 {[%clk 0:01:50]} 19. Be2 {[%clk 0:00:59]}  Qf4 {[%clk 0:01:29]} 20. Qg2 {[%clk 0:00:58]}  a5 {[%clk 0:01:22]} 21. h3 {[%clk 0:00:55]}  a4 {[%clk 0:01:22]} 22. Rhf1 {[%clk 0:00:54]}  Qe5 {[%clk 0:01:21]} 23. Nd2 {[%clk 0:00:50]}  Nd4 {[%clk 0:01:05]} 24. Bd3 {[%clk 0:00:20]}  b5 {[%clk 0:00:31]} 25. Qb7 {[%clk 0:00:19]}  Qg7 {[%clk 0:00:26]} 26. Nf3 {[%clk 0:00:13]}  Rhb8 {[%clk 0:00:23]} 27. Qe4 {[%clk 0:00:11]}  Nxf3 {[%clk 0:00:21]} 28. Rxf3 {[%clk 0:00:11]}  a3 {[%clk 0:00:21]} 29. c3 {[%clk 0:00:12]}  axb2 {[%clk 0:00:19]} 30. Kxb2 {[%clk 0:00:12]}  b4 {[%clk 0:00:19]} 31. Bc4 {[%clk 0:00:08]}  bxc3+ {[%clk 0:00:19]} 32. Kc1 {[%clk 0:00:07]}  c2 {[%clk 0:00:15]} 33. Qxc2 {[%clk 0:00:07]}  Qa1+ {[%clk 0:00:13]} 34. Kd2 {[%clk 0:00:07]}  Qd4+ {[%clk 0:00:13]} 35. Kc1 {[%clk 0:00:08]}  Qc5 {[%clk 0:00:08]} 36. Rfd3 {[%clk 0:00:06]}  d5 {[%clk 0:00:08]} 37. Bb3 {[%clk 0:00:04]}  Qa3+ {[%clk 0:00:08]} 38. Qb2 {[%clk 0:00:03]}  Qxb2+ {[%clk 0:00:07]} 39. Kxb2 {[%clk 0:00:03]}  Bb5 {[%clk 0:00:05]} 40. Re3 {[%clk 0:00:01]}  Bc4 {[%clk 0:00:05]} 0-1


[Site "https://www.chess.com"]

[Event "Titled Tuesday Blitz September 27 Late 2022"]
[White "Diaz Rosas, Julio Cesar"]
[Black "Harvey, Marcus R"]
[WhiteFideId "5105099"]
[BlackFideId "400092"]
[WhiteElo "2278"]
[BlackElo "2485"]
[Result "0-1"]
[Round "08"]
[TimeControl "180+1"]
[Date "2022.09.28"]
[WhiteClock "0:00:14"]
[BlackClock "0:00:30"]

1. e4 {[%clk 0:03:00]}  c6 {[%clk 0:02:59]} 2. d4 {[%clk 0:02:59]}  d5 {[%clk 0:03:00]} 3. e5 {[%clk 0:02:59]}  Bf5 {[%clk 0:02:58]} 4. Bd3 {[%clk 0:02:55]}  Bxd3 {[%clk 0:02:58]} 5. Qxd3 {[%clk 0:02:56]}  e6 {[%clk 0:02:59]} 6. Ne2 {[%clk 0:02:54]}  c5 {[%clk 0:02:57]} 7. O-O {[%clk 0:02:51]}  Nc6 {[%clk 0:02:56]} 8. c3 {[%clk 0:02:48]}  Rc8 {[%clk 0:02:50]} 9. Nd2 {[%clk 0:02:47]}  cxd4 {[%clk 0:02:49]} 10. cxd4 {[%clk 0:02:47]}  Nb4 {[%clk 0:02:39]} 11. Qg3 {[%clk 0:02:37]}  Qb6 {[%clk 0:02:33]} 12. Nb3 {[%clk 0:02:29]}  a5 {[%clk 0:02:26]} 13. Be3 {[%clk 0:02:26]}  a4 {[%clk 0:02:22]} 14. Nc5 {[%clk 0:02:22]}  Nc2 {[%clk 0:02:21]} 15. Rac1 {[%clk 0:02:16]}  Nxe3 {[%clk 0:02:20]} 16. Qxe3 {[%clk 0:02:17]}  Bxc5 {[%clk 0:02:16]} 17. dxc5 {[%clk 0:02:18]}  Qxb2 {[%clk 0:02:15]} 18. Rb1 {[%clk 0:02:15]}  Qxa2 {[%clk 0:02:04]} 19. Rxb7 {[%clk 0:02:13]}  Nh6 {[%clk 0:02:04]} 20. c6 {[%clk 0:01:57]}  O-O {[%clk 0:02:03]} 21. c7 {[%clk 0:01:57]}  Ng4 {[%clk 0:01:54]} 22. Qf3 {[%clk 0:01:14]}  Nxe5 {[%clk 0:01:53]} 23. Qh5 {[%clk 0:01:14]}  Nc4 {[%clk 0:01:43]} 24. Ng3 {[%clk 0:00:58]}  a3 {[%clk 0:01:33]} 25. Qg5 {[%clk 0:00:54]}  Qd2 {[%clk 0:01:14]} 26. Qe7 {[%clk 0:00:46]}  a2 {[%clk 0:01:11]} 27. Ra7 {[%clk 0:00:46]}  g6 {[%clk 0:00:51]} 28. h4 {[%clk 0:00:44]}  Qf4 {[%clk 0:00:45]} 29. h5 {[%clk 0:00:42]}  Rfe8 {[%clk 0:00:43]} 30. Qc5 {[%clk 0:00:34]}  Qd6 {[%clk 0:00:41]} 31. Qb5 {[%clk 0:00:31]}  Re7 {[%clk 0:00:39]} 32. h6 {[%clk 0:00:26]}  Rexc7 {[%clk 0:00:38]} 33. Rxa2 {[%clk 0:00:20]}  Qf4 {[%clk 0:00:35]} 34. Re2 {[%clk 0:00:16]}  Qxh6 {[%clk 0:00:34]} 35. Qb4 {[%clk 0:00:16]}  Qf8 {[%clk 0:00:34]} 36. Qb1 {[%clk 0:00:16]}  h5 {[%clk 0:00:32]} 37. Ra2 {[%clk 0:00:15]}  h4 {[%clk 0:00:32]} 38. Ne2 {[%clk 0:00:15]}  Qh6 {[%clk 0:00:32]} 39. Nd4 {[%clk 0:00:14]}  Nd2 {[%clk 0:00:30]} 0-1


[Site "https://www.chess.com"]

[Event "Titled Tuesday Blitz September 27 Late 2022"]
[White "Domingo Nunez, Ruben"]
[Black "Yanchenko, Roman"]
[WhiteFideId "22245570"]
[BlackFideId "4137329"]
[WhiteElo "2406"]
[BlackElo "2514"]
[Result "0-1"]
[Round "08"]
[TimeControl "180+1"]
[Date "2022.09.27"]
[WhiteClock "0:00:18"]
[BlackClock "0:00:50"]

1. Nf3 {[%clk 0:03:00]}  d5 {[%clk 0:03:00]} 2. b3 {[%clk 0:03:00]}  Bf5 {[%clk 0:03:00]} 3. Bb2 {[%clk 0:03:01]}  e6 {[%clk 0:03:00]} 4. h3 {[%clk 0:03:01]}  Nf6 {[%clk 0:03:01]} 5. g4 {[%clk 0:03:01]}  Be4 {[%clk 0:02:56]} 6. Bg2 {[%clk 0:03:00]}  Nc6 {[%clk 0:02:48]} 7. d3 {[%clk 0:02:55]}  Bg6 {[%clk 0:02:48]} 8. Nbd2 {[%clk 0:02:52]}  Bd6 {[%clk 0:02:45]} 9. e3 {[%clk 0:02:33]}  Qe7 {[%clk 0:02:45]} 10. Qe2 {[%clk 0:02:34]}  Ba3 {[%clk 0:02:43]} 11. Bc3 {[%clk 0:02:15]}  Qc5 {[%clk 0:02:43]} 12. Nb1 {[%clk 0:02:16]}  Bb4 {[%clk 0:02:35]} 13. Qd2 {[%clk 0:02:14]}  O-O {[%clk 0:02:19]} 14. a3 {[%clk 0:02:13]}  Bxc3 {[%clk 0:02:19]} 15. Qxc3 {[%clk 0:02:14]}  Qd6 {[%clk 0:02:17]} 16. d4 {[%clk 0:02:03]}  Ne4 {[%clk 0:02:14]} 17. Qb2 {[%clk 0:02:03]}  f5 {[%clk 0:02:15]} 18. Nbd2 {[%clk 0:01:16]}  f4 {[%clk 0:02:02]} 19. Ne5 {[%clk 0:00:59]}  fxe3 {[%clk 0:01:49]} 20. Nxe4 {[%clk 0:00:58]}  Bxe4 {[%clk 0:01:49]} 21. f3 {[%clk 0:00:56]}  Bxf3 {[%clk 0:01:01]} 22. Bxf3 {[%clk 0:00:33]}  Rxf3 {[%clk 0:01:01]} 23. O-O-O {[%clk 0:00:16]}  Nxe5 {[%clk 0:01:00]} 24. dxe5 {[%clk 0:00:17]}  Qc5 {[%clk 0:01:01]} 25. Rh2 {[%clk 0:00:17]}  Rf2 {[%clk 0:00:57]} 26. Rxf2 {[%clk 0:00:17]}  exf2 {[%clk 0:00:58]} 27. Rf1 {[%clk 0:00:18]}  Qe3+ {[%clk 0:00:58]} 28. Kb1 {[%clk 0:00:18]}  Rf8 {[%clk 0:00:55]} 29. Qc1 {[%clk 0:00:18]}  Qxe5 {[%clk 0:00:53]} 30. Qd2 {[%clk 0:00:18]}  Qg3 {[%clk 0:00:51]} 31. Qe2 {[%clk 0:00:18]}  e5 {[%clk 0:00:51]} 32. Qd2 {[%clk 0:00:19]}  Qg2 {[%clk 0:00:51]} 33. Qe2 {[%clk 0:00:18]}  e4 {[%clk 0:00:51]} 34. c3 {[%clk 0:00:17]}  e3 {[%clk 0:00:50]} 35. Kc2 {[%clk 0:00:18]}  Qxf1 {[%clk 0:00:50]} 0-1


[Site "https://www.chess.com"]

[Event "Titled Tuesday Blitz September 27 Late 2022"]
[White "Floresvillar Gonzalez, Luis Migu"]
[Black "Hemam, Moulaye Brahim"]
[WhiteFideId "5100542"]
[BlackFideId "19600054"]
[WhiteElo "2040"]
[BlackElo "2088"]
[Result "1/2-1/2"]
[Round "08"]
[TimeControl "180+1"]
[Date "2022.09.28"]
[WhiteClock "0:00:05"]
[BlackClock "0:00:23"]

1. e4 {[%clk 0:03:00]}  c5 {[%clk 0:02:58]} 2. d4 {[%clk 0:02:59]}  cxd4 {[%clk 0:02:57]} 3. c3 {[%clk 0:02:59]}  Nc6 {[%clk 0:02:57]} 4. cxd4 {[%clk 0:02:58]}  d5 {[%clk 0:02:57]} 5. e5 {[%clk 0:02:58]}  Bf5 {[%clk 0:02:57]} 6. Nc3 {[%clk 0:02:54]}  e6 {[%clk 0:02:57]} 7. Nge2 {[%clk 0:02:49]}  a6 {[%clk 0:02:55]} 8. Be3 {[%clk 0:02:49]}  Nge7 {[%clk 0:02:50]} 9. Ng3 {[%clk 0:02:48]}  Bg6 {[%clk 0:02:50]} 10. Be2 {[%clk 0:02:48]}  Nf5 {[%clk 0:02:48]} 11. Nxf5 {[%clk 0:02:47]}  Bxf5 {[%clk 0:02:47]} 12. O-O {[%clk 0:02:46]}  Be7 {[%clk 0:02:34]} 13. Rc1 {[%clk 0:02:46]}  O-O {[%clk 0:02:31]} 14. Qd2 {[%clk 0:02:44]}  Rc8 {[%clk 0:02:19]} 15. h3 {[%clk 0:02:42]}  b5 {[%clk 0:02:07]} 16. a3 {[%clk 0:02:41]}  Na5 {[%clk 0:02:03]} 17. Rce1 {[%clk 0:02:26]}  Nc4 {[%clk 0:02:00]} 18. Bxc4 {[%clk 0:02:25]}  Rxc4 {[%clk 0:02:00]} 19. g4 {[%clk 0:02:17]}  Bg6 {[%clk 0:01:56]} 20. f4 {[%clk 0:02:17]}  h6 {[%clk 0:01:17]} 21. f5 {[%clk 0:02:16]}  exf5 {[%clk 0:01:18]} 22. gxf5 {[%clk 0:02:15]}  Bh7 {[%clk 0:01:17]} 23. f6 {[%clk 0:02:15]}  gxf6 {[%clk 0:01:16]} 24. Bxh6 {[%clk 0:02:12]}  fxe5 {[%clk 0:01:14]} 25. Qg2+ {[%clk 0:02:06]}  Bg6 {[%clk 0:01:12]} 26. Rxe5 {[%clk 0:01:55]}  Bf6 {[%clk 0:01:08]} 27. Nxd5 {[%clk 0:01:44]}  Bxe5 {[%clk 0:01:03]} 28. dxe5 {[%clk 0:01:40]}  Kh8 {[%clk 0:00:46]} 29. Nf6 {[%clk 0:01:31]}  Rg8 {[%clk 0:00:43]} 30. Nxg8 {[%clk 0:01:29]}  Kxg8 {[%clk 0:00:42]} 31. Bg5 {[%clk 0:00:59]}  Qd4+ {[%clk 0:00:39]} 32. Kh1 {[%clk 0:00:54]}  Qxe5 {[%clk 0:00:34]} 33. Bf6 {[%clk 0:00:45]}  Qe4 {[%clk 0:00:33]} 34. Qxe4 {[%clk 0:00:42]}  Rxe4 {[%clk 0:00:33]} 35. Rf2 {[%clk 0:00:38]}  Rc4 {[%clk 0:00:30]} 36. Kh2 {[%clk 0:00:38]}  Rc2 {[%clk 0:00:30]} 37. Rxc2 {[%clk 0:00:37]}  Bxc2 {[%clk 0:00:31]} 38. Kg3 {[%clk 0:00:37]}  Kh7 {[%clk 0:00:31]} 39. b4 {[%clk 0:00:35]}  Kg6 {[%clk 0:00:31]} 40. Bd4 {[%clk 0:00:35]}  Bb3 {[%clk 0:00:31]} 41. Kf4 {[%clk 0:00:34]}  Be6 {[%clk 0:00:30]} 42. h4 {[%clk 0:00:34]}  Kh5 {[%clk 0:00:30]} 43. Bf6 {[%clk 0:00:33]}  Kg6 {[%clk 0:00:29]} 44. Bd8 {[%clk 0:00:29]}  f6 {[%clk 0:00:28]} 45. Kg3 {[%clk 0:00:27]}  Kf5 {[%clk 0:00:27]} 46. Kf3 {[%clk 0:00:25]}  Bf7 {[%clk 0:00:27]} 47. Kg3 {[%clk 0:00:23]}  Ke5 {[%clk 0:00:27]} 48. Kf3 {[%clk 0:00:21]}  f5 {[%clk 0:00:27]} 49. Bc7+ {[%clk 0:00:19]}  Ke6 {[%clk 0:00:27]} 50. Kf4 {[%clk 0:00:19]}  Be8 {[%clk 0:00:26]} 51. Be5 {[%clk 0:00:17]}  Bh5 {[%clk 0:00:26]} 52. Bd4 {[%clk 0:00:13]}  Bg4 {[%clk 0:00:24]} 53. Bc5 {[%clk 0:00:12]}  Kd5 {[%clk 0:00:24]} 54. Kg5 {[%clk 0:00:06]}  Ke4 {[%clk 0:00:23]} 55. h5 {[%clk 0:00:06]}  f4 {[%clk 0:00:23]} 56. h6 {[%clk 0:00:06]}  Bf5 {[%clk 0:00:23]} 57. Bf2 {[%clk 0:00:02]}  f3 {[%clk 0:00:23]} 58. Kf6 {[%clk 0:00:01]}  Bh7 {[%clk 0:00:22]} 59. Kg7 {[%clk 0:00:01]}  Bf5 {[%clk 0:00:22]} 60. h7 {[%clk 0:00:02]}  Bxh7 {[%clk 0:00:22]} 61. Kxh7 {[%clk 0:00:03]}  Kd3 {[%clk 0:00:22]} 62. Kg6 {[%clk 0:00:03]}  Kc3 {[%clk 0:00:20]} 63. Bc5 {[%clk 0:00:02]}  Kb3 {[%clk 0:00:20]} 64. Kf5 {[%clk 0:00:03]}  Kxa3 {[%clk 0:00:19]} 65. Ke4 {[%clk 0:00:03]}  f2 {[%clk 0:00:20]} 66. Bxf2 {[%clk 0:00:02]}  Kxb4 {[%clk 0:00:21]} 67. Kd3 {[%clk 0:00:02]}  a5 {[%clk 0:00:21]} 68. Kc2 {[%clk 0:00:02]}  Ka3 {[%clk 0:00:21]} 69. Be1 {[%clk 0:00:02]}  a4 {[%clk 0:00:21]} 70. Kb1 {[%clk 0:00:01]}  b4 {[%clk 0:00:21]} 71. Bxb4+ {[%clk 0:00:01]}  Kxb4 {[%clk 0:00:21]} 72. Ka1 {[%clk 0:00:02]}  Kb3 {[%clk 0:00:21]} 73. Kb1 {[%clk 0:00:02]}  a3 {[%clk 0:00:21]} 74. Ka1 {[%clk 0:00:03]}  Ka4 {[%clk 0:00:21]} 75. Kb1 {[%clk 0:00:03]}  Kb4 {[%clk 0:00:22]} 76. Ka1 {[%clk 0:00:04]}  Kb3 {[%clk 0:00:22]} 77. Kb1 {[%clk 0:00:04]}  a2+ {[%clk 0:00:22]} 78. Ka1 {[%clk 0:00:05]}  Ka3 {[%clk 0:00:23]} 1/2-1/2


[Site "https://www.chess.com"]

[Event "Titled Tuesday Blitz September 27 Late 2022"]
[White "Goltsev, Dmitry"]
[Black "Tari, Aryan"]
[WhiteFideId "24176710"]
[BlackFideId "1510045"]
[WhiteElo "2257"]
[BlackElo "2612"]
[Result "0-1"]
[Round "08"]
[TimeControl "180+1"]
[Date "2022.09.27"]
[WhiteClock "0:01:07"]
[BlackClock "0:01:13"]

1. e4 {[%clk 0:02:49]}  c6 {[%clk 0:03:00]} 2. d4 {[%clk 0:02:49]}  d5 {[%clk 0:03:00]} 3. Nc3 {[%clk 0:02:50]}  dxe4 {[%clk 0:03:00]} 4. Nxe4 {[%clk 0:02:51]}  Nf6 {[%clk 0:03:00]} 5. Ng3 {[%clk 0:02:51]}  h5 {[%clk 0:03:00]} 6. h4 {[%clk 0:02:49]}  g6 {[%clk 0:02:57]} 7. Nf3 {[%clk 0:02:49]}  Bg7 {[%clk 0:02:57]} 8. Ne5 {[%clk 0:02:49]}  Nbd7 {[%clk 0:02:54]} 9. Bf4 {[%clk 0:02:48]}  Nd5 {[%clk 0:02:47]} 10. Qd2 {[%clk 0:02:34]}  Nxf4 {[%clk 0:02:45]} 11. Qxf4 {[%clk 0:02:35]}  Nxe5 {[%clk 0:02:44]} 12. dxe5 {[%clk 0:02:35]}  Qa5+ {[%clk 0:02:44]} 13. c3 {[%clk 0:02:34]}  Qxe5+ {[%clk 0:02:29]} 14. Qxe5 {[%clk 0:02:33]}  Bxe5 {[%clk 0:02:30]} 15. Ne4 {[%clk 0:02:33]}  Bf5 {[%clk 0:02:28]} 16. Nc5 {[%clk 0:02:30]}  O-O-O {[%clk 0:02:26]} 17. Bc4 {[%clk 0:02:26]}  b6 {[%clk 0:02:10]} 18. Nb3 {[%clk 0:02:21]}  e6 {[%clk 0:02:10]} 19. a4 {[%clk 0:02:15]}  Kc7 {[%clk 0:02:04]} 20. Ke2 {[%clk 0:02:12]}  a5 {[%clk 0:01:56]} 21. Rad1 {[%clk 0:02:06]}  Bc2 {[%clk 0:01:47]} 22. Rxd8 {[%clk 0:02:02]}  Rxd8 {[%clk 0:01:48]} 23. Rc1 {[%clk 0:02:00]}  Be4 {[%clk 0:01:48]} 24. f3 {[%clk 0:01:57]}  Bf5 {[%clk 0:01:49]} 25. Ke3 {[%clk 0:01:51]}  Bg3 {[%clk 0:01:36]} 26. Nd4 {[%clk 0:01:50]}  e5 {[%clk 0:01:29]} 27. Ne2 {[%clk 0:01:47]}  Bxh4 {[%clk 0:01:29]} 28. g3 {[%clk 0:01:42]}  Bg5+ {[%clk 0:01:26]} 29. f4 {[%clk 0:01:43]}  exf4+ {[%clk 0:01:26]} 30. gxf4 {[%clk 0:01:43]}  Be7 {[%clk 0:01:22]} 31. Bxf7 {[%clk 0:01:40]}  Rd3+ {[%clk 0:01:22]} 32. Kf2 {[%clk 0:01:40]}  Bc5+ {[%clk 0:01:22]} 33. Ke1 {[%clk 0:01:34]}  h4 {[%clk 0:01:22]} 34. Be8 {[%clk 0:01:12]}  h3 {[%clk 0:01:20]} 35. Nd4 {[%clk 0:01:07]}  Re3+ {[%clk 0:01:13]} 0-1


[Site "https://www.chess.com"]

[Event "Titled Tuesday Blitz September 27 Late 2022"]
[White "Gunduz, Umut Erdem"]
[Black "Jobava, Baadur"]
[WhiteFideId "6381383"]
[BlackFideId "13601520"]
[WhiteElo "2029"]
[BlackElo "2582"]
[Result "0-1"]
[Round "08"]
[TimeControl "180+1"]
[Date "2022.09.27"]
[WhiteClock "0:00:03"]
[BlackClock "0:00:23"]

1. e4 {[%clk 0:03:00]}  e6 {[%clk 0:02:59]} 2. d4 {[%clk 0:03:00]}  d5 {[%clk 0:03:00]} 3. Nc3 {[%clk 0:02:59]}  dxe4 {[%clk 0:03:00]} 4. Nxe4 {[%clk 0:02:59]}  Bd7 {[%clk 0:03:01]} 5. Nf3 {[%clk 0:02:59]}  Bc6 {[%clk 0:03:02]} 6. Bd3 {[%clk 0:03:00]}  Nd7 {[%clk 0:03:03]} 7. O-O {[%clk 0:02:59]}  Ngf6 {[%clk 0:03:03]} 8. Ned2 {[%clk 0:03:00]}  g6 {[%clk 0:03:03]} 9. Nc4 {[%clk 0:03:00]}  Bg7 {[%clk 0:03:04]} 10. Na5 {[%clk 0:03:00]}  O-O {[%clk 0:03:05]} 11. Nxc6 {[%clk 0:02:59]}  bxc6 {[%clk 0:03:06]} 12. c3 {[%clk 0:02:51]}  c5 {[%clk 0:03:06]} 13. dxc5 {[%clk 0:02:44]}  Nxc5 {[%clk 0:03:06]} 14. Bc2 {[%clk 0:02:45]}  a5 {[%clk 0:03:05]} 15. Be3 {[%clk 0:02:44]}  Qe7 {[%clk 0:03:05]} 16. Nd4 {[%clk 0:02:32]}  Qd6 {[%clk 0:02:46]} 17. Nb3 {[%clk 0:02:25]}  Ncd7 {[%clk 0:02:35]} 18. a4 {[%clk 0:02:18]}  Rfb8 {[%clk 0:02:33]} 19. Qc1 {[%clk 0:02:08]}  Ng4 {[%clk 0:02:31]} 20. Bf4 {[%clk 0:02:05]}  Be5 {[%clk 0:02:32]} 21. Bg3 {[%clk 0:02:00]}  Bxg3 {[%clk 0:02:29]} 22. hxg3 {[%clk 0:01:59]}  Qe5 {[%clk 0:02:22]} 23. Nd4 {[%clk 0:01:52]}  Qh5 {[%clk 0:02:20]} 24. Nf3 {[%clk 0:01:33]}  Nde5 {[%clk 0:02:20]} 25. Nh4 {[%clk 0:01:26]}  g5 {[%clk 0:02:20]} 26. f3 {[%clk 0:01:09]}  gxh4 {[%clk 0:01:51]} 27. fxg4 {[%clk 0:01:08]}  Nxg4 {[%clk 0:01:52]} 28. gxh4 {[%clk 0:00:57]}  Qxh4 {[%clk 0:01:18]} 29. Qf4 {[%clk 0:00:56]}  Rxb2 {[%clk 0:01:07]} 30. Be4 {[%clk 0:00:32]}  Rf8 {[%clk 0:01:05]} 31. Rf3 {[%clk 0:00:15]}  f5 {[%clk 0:01:00]} 32. Bc6 {[%clk 0:00:04]}  Qe7 {[%clk 0:00:54]} 33. Bb5 {[%clk 0:00:03]}  c6 {[%clk 0:00:50]} 34. Bf1 {[%clk 0:00:02]}  Rd8 {[%clk 0:00:39]} 35. Kh1 {[%clk 0:00:02]}  Rbd2 {[%clk 0:00:32]} 36. Re1 {[%clk 0:00:02]}  Rd1 {[%clk 0:00:32]} 37. Rxd1 {[%clk 0:00:01]}  Rxd1 {[%clk 0:00:33]} 38. Qb8+ {[%clk 0:00:01]}  Kg7 {[%clk 0:00:32]} 39. Qf4 {[%clk 0:00:02]}  Kg6 {[%clk 0:00:28]} 40. Kg1 {[%clk 0:00:02]}  Qc5+ {[%clk 0:00:27]} 41. Kh1 {[%clk 0:00:03]}  Qe5 {[%clk 0:00:22]} 42. Qxe5 {[%clk 0:00:02]}  Nxe5 {[%clk 0:00:23]} 43. Re3 {[%clk 0:00:03]}  Rxf1+ {[%clk 0:00:23]} 0-1


[Site "https://www.chess.com"]